bitfinex-derivatives/quotes_BTCF0:USTF0_20250919
["timestamp","ask_amount","ask_price","bid_price","bid_amount"]
[1758308572039,0.62438924,115510.0,115500.0,0.7922]
[1758308574950,0.98518924,115510.0,115500.0,0.7922]
[1758308576844,0.62438924,115510.0,115500.0,0.7922]
[1758308577647,0.98518924,115510.0,115500.0,0.7922]
[1758308577847,0.98518924,115510.0,115500.0,1.1323451]
[1758308579048,0.64504414,115510.0,115500.0,1.1323451]
[1758308579248,0.64504414,115510.0,115500.0,1.4931451]
[1758308579249,0.28424414,115510.0,115500.0,1.4931451]
[1758308579839,0.28424414,115510.0,115500.0,1.1323451]
[1758308582350,0.28424414,115510.0,115500.0,0.001]
[1758308582542,0.28424414,115510.0,115500.0,0.3411451]
[1758308582742,0.28424414,115510.0,115500.0,1.1318651]
[1758308584547,0.28424414,115510.0,115500.0,1.4926651]
[1758308584743,0.28424414,115510.0,115500.0,1.1318651]
[1758308585239,0.28424414,115510.0,115500.0,1.4926651]
[1758308585849,0.28424414,115510.0,115500.0,1.4924651]
[1758308586245,0.28424414,115510.0,115500.0,0.3411451]
[1758308586442,0.28424414,115510.0,115500.0,1.1315051]
[1758308587950,0.28424414,115510.0,115500.0,0.79136]
[1758308588146,0.28424414,115510.0,115500.0,1.1315051]
[1758308589247,0.28424414,115510.0,115500.0,0.79116]
[1758308589550,0.28424414,115510.0,115500.0,1.1313051]
[1758308592757,0.28424414,115510.0,115500.0,1.1310651]
[1758308592948,0.28424414,115510.0,115500.0,1.1309451]
[1758308593354,0.64504414,115510.0,115500.0,1.1309451]
[1758308593751,0.28424414,115510.0,115500.0,1.1309451]
[1758308594348,0.28424414,115510.0,115500.0,1.4917451]
[1758308594545,0.21524218,115510.0,115500.0,1.4917451]
[1758308594750,0.21524218,115510.0,115500.0,1.7417451]
[1758308595058,0.14806881,115510.0,115500.0,2.10185967]
[1758308595253,0.003,115510.0,115500.0,2.10185967]
[1758308595453,0.003,115510.0,115500.0,2.18838967]
[1758308597860,0.0895226,115510.0,115500.0,2.11262972]
[1758308599358,0.0895226,115510.0,115500.0,2.19915972]
[1758308600061,0.0895226,115510.0,115500.0,2.11262972]
[1758308600458,0.0895226,115510.0,115500.0,2.11214972]
[1758308602862,0.0895226,115510.0,115500.0,1.32282972]
[1758308603055,0.0895226,115510.0,115500.0,2.11186972]
[1758308603656,0.0895226,115510.0,115500.0,2.19839972]
[1758308604162,0.0895226,115510.0,115500.0,1.40935972]
[1758308604461,0.0895226,115510.0,115500.0,2.19835972]
[1758308605763,0.0895226,115510.0,115500.0,1.40935972]
[1758308605968,0.0895226,115510.0,115500.0,2.11170972]
[1758308607369,0.0895226,115510.0,115500.0,2.10081967]
[1758308607956,0.0895226,115510.0,115500.0,2.18734977]
[1758308608152,0.0895226,115510.0,115500.0,2.19862614]
[1758308609159,0.0895226,115510.0,115500.0,1.40986614]
[1758308609365,0.0895226,115510.0,115500.0,2.19850614]
[1758308611167,0.0895226,115510.0,115500.0,2.19834614]
[1758308615472,0.0895226,115510.0,115500.0,2.11149604]
[1758308616873,0.0895226,115510.0,115500.0,2.19802604]
[1758308619374,0.0895226,115510.0,115500.0,1.94802604]
[1758308621376,0.0895226,115510.0,115500.0,1.86149604]
[1758308621677,0.0895226,115510.0,115500.0,1.94802604]
[1758308625677,0.0895226,115510.0,115500.0,1.86149604]
[1758308627179,0.0895226,115510.0,115500.0,1.06205967]
[1758308627474,0.0895226,115510.0,115500.0,1.84977967]
[1758308627977,0.0895226,115510.0,115500.0,1.06205967]
[1758308628177,0.0895226,115510.0,115500.0,1.84977967]
[1758308630072,0.0895226,115510.0,115500.0,1.86036086]
[1758308631780,0.0895226,115510.0,115500.0,2.20002341]
[1758308634179,0.0895226,115510.0,115500.0,1.40172222]
[1758308634370,0.0895226,115510.0,115500.0,2.18944222]
[1758308636178,0.0895226,115510.0,115500.0,1.40172222]
[1758308636476,0.0895226,115510.0,115500.0,2.18944222]
[1758308642787,0.0895226,115510.0,115500.0,1.16948947]
[1758308642978,0.0895226,115510.0,115500.0,2.18944222]
[1758308646582,0.0895226,115510.0,115500.0,2.18940222]
[1758308648287,0.0895226,115510.0,115500.0,2.29815033]
[1758308649089,0.0895226,115510.0,115500.0,2.18940222]
[1758308651090,0.0895226,115510.0,115500.0,1.40172222]
[1758308651285,0.0895226,115510.0,115500.0,2.18936222]
[1758308653895,0.0895226,115510.0,115500.0,1.84937797]
[1758308655195,0.0895226,115510.0,115500.0,2.18936222]
[1758308655998,0.0895226,115510.0,115500.0,1.16940947]
[1758308656197,0.0895226,115510.0,115500.0,2.18936222]
[1758308658107,0.0895226,115510.0,115500.0,1.84937797]
[1758308658807,0.18986048,115510.0,115500.0,1.84933797]
[1758308659011,0.43986048,115510.0,115500.0,1.06173797]
[1758308659310,0.77984473,115510.0,115500.0,1.84933797]
[1758308659804,0.77984473,115510.0,115500.0,1.50935372]
[1758308660106,0.43986048,115510.0,115500.0,1.48853797]
[1758308660307,0.43986048,115510.0,115500.0,1.4685685]
[1758308660508,0.43986048,115510.0,115500.0,0.6809685]
[1758308660707,0.43986048,115510.0,115500.0,1.4685685]
[1758308662310,1.14064473,115510.0,115500.0,0.7886]
[1758308662510,1.14064473,115510.0,115500.0,1.12858425]
[1758308662704,1.14064473,115510.0,115500.0,0.34098425]
[1758308662906,1.14064473,115510.0,115500.0,1.12858425]
[1758308663412,1.14064473,115510.0,115500.0,0.34098425]
[1758308663704,1.14064473,115510.0,115500.0,0.001]
[1758308663910,0.80066048,115510.0,115500.0,0.78856]
[1758308664112,1.16476543,115510.0,115500.0,0.78856]
[1758308665313,1.14064473,115510.0,115500.0,0.78856]
[1758308665613,0.1678098,115500.0,115490.0,0.7878]
[1758308665916,0.86859405,115500.0,115490.0,1.12758425]
[1758308667716,0.86859405,115500.0,115490.0,1.12858425]
[1758308667717,0.87059405,115500.0,115490.0,1.12858425]
[1758308668012,0.93870899,115500.0,115490.0,1.12858425]
[1758308669810,1.27869324,115500.0,115490.0,1.12858425]
[1758308670216,0.93870899,115500.0,115490.0,1.12858425]
[1758308671819,0.93870899,115500.0,115490.0,0.7886]
[1758308672117,0.93870899,115500.0,115490.0,1.12858425]
[1758308675210,0.57790899,115500.0,115490.0,1.12858425]
[1758308675610,0.93870899,115500.0,115490.0,1.12858425]
[1758308681022,0.96301586,115500.0,115490.0,1.12858425]
[1758308681414,1.30300011,115500.0,115490.0,1.12858425]
[1758308682723,0.96301586,115500.0,115490.0,1.12858425]
[1758308684521,1.30300011,115500.0,115490.0,1.12858425]
[1758308684922,1.30300011,115500.0,115490.0,0.7886]
[1758308685123,1.30300011,115500.0,115490.0,1.12858425]
[1758308686521,1.27869324,115500.0,115490.0,1.12858425]
[1758308686726,1.30303298,115500.0,115490.0,1.12858425]
[1758308687324,1.30303298,115500.0,115490.0,0.001]
[1758308687515,1.30303298,115500.0,115490.0,0.78864]
[1758308691826,0.96330367,115500.0,115490.0,0.78864]
[1758308692019,0.96330367,115500.0,115490.0,0.001]
[1758308692227,0.96330367,115500.0,115490.0,1e-07]
[1758308692520,1.30354286,115500.0,115490.0,1e-07]
[1758308693426,0.96330367,115500.0,115490.0,1e-07]
[1758308693620,1.30354286,115500.0,115490.0,1e-07]
[1758308693825,2.09114286,115500.0,115490.0,1e-07]
[1758308694128,1.75086367,115500.0,115490.0,1e-07]
[1758308695234,1.75090367,115500.0,115490.0,1e-07]
[1758308695736,1.89460367,115500.0,115490.0,1e-07]
[1758308696537,2.23484286,115500.0,115490.0,1e-07]
[1758308699538,1.44724286,115500.0,115490.0,1e-07]
[1758308699839,2.23480286,115500.0,115490.0,1e-07]
[1758308701233,1.44724286,115500.0,115490.0,1e-07]
[1758308701433,2.23480286,115500.0,115490.0,1e-07]
[1758308701633,2.2659048,115500.0,115490.0,1e-07]
[1758308702144,0.62306448,115500.0,115490.0,0.34023929]
[1758308702442,0.96330367,115500.0,115490.0,1e-07]
[1758308708635,1.75082367,115500.0,115490.0,1e-07]
[1758308710842,2.09106286,115500.0,115490.0,1e-07]
[1758308712337,1.75082367,115500.0,115490.0,1e-07]
[1758308714042,0.1687864,115490.0,115480.0,1e-07]
[1758308714233,0.91173958,115490.0,115480.0,1e-07]
[1758308714437,1.69917958,115490.0,115480.0,1e-07]
[1758308715547,1.69917958,115490.0,115480.0,0.0030001]
[1758308715738,1.84387958,115490.0,115480.0,0.0030001]
[1758308716135,1.84387958,115490.0,115480.0,0.0040001]
[1758308716647,1.84387958,115490.0,115480.0,1e-07]
[1758308720741,1.05643958,115490.0,115480.0,1e-07]
[1758308720948,1.84387958,115490.0,115480.0,1e-07]
[1758308722542,1.05643958,115490.0,115480.0,1e-07]
[1758308722948,1.84387958,115490.0,115480.0,1e-07]
[1758308723645,1.05643958,115490.0,115480.0,1e-07]
[1758308723948,1.84387958,115490.0,115480.0,1e-07]
[1758308724352,1.05643958,115490.0,115480.0,1e-07]
[1758308724553,1.84387958,115490.0,115480.0,1e-07]
[1758308726746,1.84387958,115490.0,115450.0,1.14824]
[1758308726747,0.0865516,115470.0,115450.0,0.3608]
[1758308726950,0.1644441,115440.0,115430.0,0.70103919]
[1758308727646,0.1644441,115440.0,115430.0,0.34023919]
[1758308728244,0.1644516,115430.0,115420.0,0.38751983]
[1758308728450,0.52237786,115430.0,115420.0,0.38751983]
[1758308728650,0.87417786,115430.0,115420.0,0.02671983]
[1758308729154,0.15313867,115430.0,115420.0,0.97775902]
[1758308729353,0.95191346,115430.0,115420.0,0.98775902]
[1758308729555,0.50471265,115430.0,115420.0,0.28671983]
[1758308729856,0.50771265,115430.0,115420.0,0.31071983]
[1758308730246,0.86851265,115430.0,115420.0,0.06071983]
[1758308730451,0.89268614,115430.0,115420.0,0.06071983]
[1758308730651,1.68016614,115430.0,115420.0,0.06071983]
[1758308731051,1.65599265,115430.0,115420.0,0.06071983]
[1758308731256,0.1644665,115410.0,115400.0,0.03]
[1758308731454,0.18187636,115410.0,115400.0,0.77248919]
[1758308731660,0.18187626,115410.0,115400.0,0.77248919]
[1758308732254,0.18187626,115410.0,115400.0,0.41168919]
[1758308732458,0.54267626,115410.0,115400.0,0.42268919]
[1758308732657,0.54367626,115410.0,115400.0,0.42268919]
[1758308732848,0.54767626,115410.0,115400.0,0.43368919]
[1758308733250,0.18687626,115410.0,115400.0,0.43368919]
[1758308734564,0.18687626,115410.0,115400.0,0.79448919]
[1758308735864,0.18687626,115410.0,115400.0,1.38472838]
[1758308735865,0.0347,115410.0,115400.0,1.38472838]
[1758308736064,0.1695665,115410.0,115400.0,0.70425]
[1758308736465,0.1695665,115410.0,115400.0,1.04448919]
[1758308737468,0.1695665,115410.0,115400.0,1.49189]
[1758308737666,0.1695665,115410.0,115400.0,1.04448919]
[1758308737862,0.1695665,115410.0,115400.0,0.79448919]
[1758308743166,0.08297,115410.0,115400.0,0.79448919]
[1758308743366,0.0916965,115410.0,115400.0,0.79448919]
[1758308743767,0.1695665,115410.0,115400.0,0.79448919]
[1758308746373,0.0916965,115410.0,115400.0,1.38472838]
[1758308746574,0.0916965,115410.0,115400.0,1.04448919]
[1758308747772,0.0916965,115410.0,115400.0,1.38472838]
[1758308748769,0.0916965,115410.0,115400.0,1.04448919]
[1758308751778,0.0916965,115410.0,115400.0,2.5137412]
[1758308754779,0.0916965,115410.0,115400.0,1.3854308]
[1758308755084,0.1229365,115410.0,115400.0,1.3854308]
[1758308755378,0.1229365,115410.0,115400.0,2.1731108]
[1758308760380,0.03634,115410.0,115400.0,2.1731108]
[1758308760683,0.0051,115410.0,115400.0,2.3503052]
[1758308760874,0.0051,115410.0,115400.0,2.6003052]
[1758308761075,0.09521707,115430.0,115420.0,0.03723]
[1758308761383,0.01768707,115430.0,115420.0,2.5682812]
[1758308762586,0.10426867,115430.0,115420.0,1.7806012]
[1758308762779,0.10426867,115430.0,115420.0,2.5682812]
[1758308762982,0.01768707,115430.0,115420.0,2.5682812]
[1758308763679,0.01868707,115430.0,115420.0,2.5752812]
[1758308763880,0.02168707,115430.0,115420.0,2.5792812]
[1758308764478,0.10826867,115430.0,115420.0,2.5792812]
[1758308765884,0.02168707,115430.0,115420.0,2.5792812]
[1758308767586,0.02168707,115430.0,115420.0,2.6658704]
[1758308768088,0.02168707,115430.0,115420.0,1.8781904]
[1758308768286,0.02168707,115430.0,115420.0,2.6657904]
[1758308772897,0.02168707,115430.0,115420.0,2.9157904]
[1758308773096,0.004,115430.0,115420.0,2.93580139]
[1758308774291,0.004,115430.0,115420.0,2.93572139]
[1758308779895,0.004,115430.0,115420.0,2.93564139]
[1758308780290,0.004,115430.0,115420.0,2.14820139]
[1758308780490,0.004,115430.0,115420.0,2.93564139]
[1758308780690,0.004,115430.0,115420.0,2.14820139]
[1758308780887,0.004,115430.0,115420.0,2.93564139]
[1758308781197,0.0905817,115430.0,115420.0,2.93564139]
[1758308782295,0.004,115430.0,115420.0,2.93564139]
[1758308782488,0.0905817,115430.0,115420.0,2.93564139]
[1758308783797,0.0905817,115430.0,115420.0,2.93560139]
[1758308784291,0.0905817,115430.0,115420.0,2.14820139]
[1758308784493,0.1671517,115430.0,115420.0,0.78984099]
[1758308784684,0.4171517,115430.0,115420.0,1.57724099]
[1758308784890,0.4171517,115430.0,115420.0,1.47102179]
[1758308785091,0.4171517,115430.0,115420.0,1.89762179]
[1758308786300,0.4171517,115430.0,115420.0,1.55703139]
[1758308786486,0.4171517,115430.0,115420.0,0.76963139]
[1758308786690,0.7577421,115430.0,115420.0,0.40883139]
[1758308786894,1.1185421,115430.0,115420.0,1.15896139]
[1758308787296,1.1185421,115430.0,115420.0,1.15900139]
[1758308787496,1.1185421,115430.0,115420.0,0.37160139]
[1758308787699,1.1185421,115430.0,115420.0,1.15900139]
[1758308791106,1.1185421,115430.0,115420.0,0.3515904]
[1758308791306,1.1185421,115430.0,115420.0,0.011]
[1758308791511,1.1185421,115430.0,115420.0,1.1390304]
[1758308791812,1.1185421,115430.0,115420.0,0.79844]
[1758308792010,1.1185421,115430.0,115420.0,0.011]
[1758308792908,1.18796586,115430.0,115420.0,0.011]
[1758308794905,1.52855626,115430.0,115420.0,0.011]
[1758308796908,1.18796586,115430.0,115420.0,0.011]
[1758308797108,1.97544586,115430.0,115420.0,0.011]
[1758308798317,2.31603626,115430.0,115420.0,0.011]
[1758308798721,2.45973626,115430.0,115420.0,0.011]
[1758308799324,2.20973626,115430.0,115420.0,0.011]
[1758308801424,1.52855546,115430.0,115420.0,0.011]
[1758308801625,2.20973626,115430.0,115420.0,0.011]
[1758308802225,2.20977626,115430.0,115420.0,0.011]
[1758308802818,0.0865891,115420.0,115410.0,0.00022975]
[1758308803024,1.2051399,115420.0,115410.0,0.00012975]
[1758308803522,0.5239591,115420.0,115410.0,0.00012975]
[1758308803722,1.2051399,115420.0,115410.0,0.00012975]
[1758308804124,1.2061399,115420.0,115410.0,0.00812975]
[1758308806023,1.2091399,115420.0,115410.0,0.01312975]
[1758308807226,1.9966999,115420.0,115410.0,0.35372015]
[1758308807422,1.9966999,115420.0,115410.0,0.01312975]
[1758308807624,1.9966999,115420.0,115410.0,0.35372015]
[1758308808323,1.9966999,115420.0,115410.0,0.01312975]
[1758308808628,1.2091399,115420.0,115410.0,0.01312975]
[1758308808816,2.1403999,115420.0,115410.0,0.04708975]
[1758308809022,2.1403999,115420.0,115410.0,0.38768015]
[1758308809926,2.1403999,115420.0,115410.0,0.04708975]
[1758308810328,2.1403999,115420.0,115410.0,0.01312975]
[1758308813230,2.16417394,115420.0,115410.0,0.01312975]
[1758308813916,1.82374376,115420.0,115410.0,0.01312975]
[1758308827339,2.16449438,115420.0,115410.0,0.01312975]
[1758308827539,2.44559632,115420.0,115410.0,0.01312975]
[1758308828236,2.1048457,115420.0,115410.0,0.01312975]
[1758308828940,2.44559632,115420.0,115410.0,0.01312975]
[1758308830440,2.44559632,115420.0,115410.0,5e-08]
[1758308830938,1.7440057,115420.0,115410.0,5e-08]
[1758308831238,2.4656057,115420.0,115410.0,5e-08]
[1758308831739,2.80635632,115420.0,115410.0,5e-08]
[1758308831934,2.01883632,115420.0,115410.0,5e-08]
[1758308832140,2.4656057,115420.0,115410.0,5e-08]
[1758308832335,2.77525438,115420.0,115410.0,5e-08]
[1758308832541,2.80635632,115420.0,115410.0,5e-08]
[1758308833140,2.4656057,115420.0,115410.0,5e-08]
[1758308833342,2.43450376,115420.0,115410.0,5e-08]
[1758308833540,2.77525438,115420.0,115410.0,5e-08]
[1758308834041,2.80635632,115420.0,115410.0,5e-08]
[1758308834243,2.77525438,115420.0,115410.0,5e-08]
[1758308834640,2.43450376,115420.0,115410.0,5e-08]
[1758308835143,2.77525438,115420.0,115410.0,5e-08]
[1758308836538,2.77521438,115420.0,115410.0,5e-08]
[1758308837046,1.98773438,115420.0,115410.0,5e-08]
[1758308837238,2.77521438,115420.0,115410.0,5e-08]
[1758308845951,1.98773438,115420.0,115410.0,5e-08]
[1758308846141,2.77521438,115420.0,115410.0,5e-08]
[1758308849646,1.98773438,115420.0,115410.0,5e-08]
[1758308849851,2.77517438,115420.0,115410.0,5e-08]
[1758308850247,1.98773438,115420.0,115410.0,5e-08]
[1758308850451,1.64698376,115420.0,115410.0,5e-08]
[1758308851056,2.43442376,115420.0,115410.0,5e-08]
[1758308855250,2.77517438,115420.0,115410.0,5e-08]
[1758308856054,2.75140034,115420.0,115410.0,5e-08]
[1758308856251,2.77517249,115420.0,115410.0,5e-08]
[1758308856757,2.43442187,115420.0,115410.0,5e-08]
[1758308859357,2.18442187,115420.0,115410.0,5e-08]
[1758308862157,2.18438187,115420.0,115410.0,5e-08]
[1758308862358,2.18434187,115420.0,115410.0,5e-08]
[1758308872277,1.84359125,115420.0,115410.0,5e-08]
[1758308872571,2.18434187,115420.0,115410.0,5e-08]
[1758308875974,2.52513949,115420.0,115410.0,5e-08]
[1758308876474,1.73777949,115420.0,115410.0,5e-08]
[1758308876677,2.52505949,115420.0,115410.0,5e-08]
[1758308877575,1.84351125,115420.0,115410.0,5e-08]
[1758308877769,2.52505949,115420.0,115410.0,5e-08]
[1758308880979,2.86583361,115420.0,115410.0,5e-08]
[1758308883180,2.52505949,115420.0,115410.0,5e-08]
[1758308884381,2.86583361,115420.0,115410.0,5e-08]
[1758308896292,0.3042265,115410.0,115400.0,0.0301]
[1758308896501,1.38785503,115410.0,115400.0,0.03]
[1758308897391,1.38885503,115410.0,115400.0,0.032]
[1758308897890,1.38885503,115410.0,115400.0,0.039]
[1758308898086,1.39285503,115410.0,115400.0,0.039]
[1758308898496,1.39285391,115410.0,115400.0,0.039]
[1758308901392,2.17997391,115410.0,115400.0,0.039]
[1758308926713,1.39285391,115410.0,115400.0,0.039]
[1758308926914,2.17981391,115410.0,115400.0,0.039]
[1758308928911,2.15604288,115410.0,115400.0,0.039]
[1758308929114,2.17985461,115410.0,115400.0,0.039]
[1758308937820,2.17999799,115410.0,115400.0,0.039]
[1758308944530,1.49830637,115410.0,115400.0,0.039]
[1758308944831,2.17983799,115410.0,115400.0,0.039]
[1758308945424,1.39303799,115410.0,115400.0,0.039]
[1758308945635,1.83899218,115410.0,115400.0,0.05263]
[1758308945934,1.83899218,115410.0,115400.0,0.039]
[1758308947425,2.17983799,115410.0,115400.0,0.039]
[1758308949730,1.83899218,115410.0,115400.0,0.039]
[1758308951329,1.49814637,115410.0,115400.0,0.039]
[1758308951627,1.83899218,115410.0,115400.0,0.039]
[1758308953826,0.56764637,115410.0,115400.0,0.05263]
[1758308954033,1.35436637,115410.0,115400.0,0.64347581]
[1758308954630,1.69521218,115410.0,115400.0,0.64347581]
[1758308955133,1.69521218,115410.0,115400.0,0.30263]
[1758308958828,0.56764637,115410.0,115400.0,0.30263]
[1758308959126,0.90849218,115410.0,115400.0,0.30263]
[1758308959723,0.55013823,115410.0,115400.0,0.39347581]
[1758308959923,0.1655265,115410.0,115400.0,0.64347581]
[1758308960120,0.5263265,115410.0,115400.0,0.64347581]
[1758308960530,0.1655265,115410.0,115400.0,0.64347581]
[1758308961626,0.5263265,115410.0,115400.0,0.64347581]
[1758308962739,0.1655265,115410.0,115400.0,0.64347581]
[1758308962930,0.5263265,115410.0,115400.0,0.64347581]
[1758308963330,0.1655265,115410.0,115400.0,0.64347581]
[1758308964238,0.5263265,115410.0,115400.0,0.64347581]
[1758308964832,0.1655265,115410.0,115400.0,0.64347581]
[1758308965136,0.5263265,115410.0,115400.0,0.64347581]
[1758308969342,0.1655265,115410.0,115400.0,0.64347581]
[1758308971043,0.5263265,115410.0,115400.0,0.64347581]
[1758308971944,0.5263265,115410.0,115400.0,1.43003581]
[1758308972243,0.1655265,115410.0,115400.0,1.43003581]
[1758308972943,0.5263265,115410.0,115400.0,1.43003581]
[1758308973645,0.1655265,115410.0,115400.0,1.43003581]
[1758308974345,0.5263265,115410.0,115400.0,1.43003581]
[1758308974534,0.1655265,115410.0,115400.0,1.43003581]
[1758308974736,0.1191065,115410.0,115400.0,1.18003581]
[1758308976951,0.1191065,115410.0,115400.0,1.19008581]
[1758308978146,0.1647265,115410.0,115400.0,0.06268]
[1758308978351,0.1647265,115410.0,115400.0,0.40352581]
[1758308978550,0.1647265,115410.0,115400.0,1.18996581]
[1758308979044,0.5255265,115410.0,115400.0,1.18996581]
[1758308981743,0.1647265,115410.0,115400.0,1.18996581]
[1758308982949,0.1647265,115410.0,115400.0,0.40352581]
[1758308983259,0.86637231,115410.0,115400.0,0.06268]
[1758308984954,1.11637231,115410.0,115400.0,0.84908]
[1758308986457,0.7755265,115410.0,115400.0,0.84908]
[1758308986759,1.11637231,115410.0,115400.0,0.06268]
[1758308990463,0.7755265,115410.0,115400.0,0.06268]
[1758308990763,1.11637231,115410.0,115400.0,0.06268]
[1758308991161,0.7755265,115410.0,115400.0,0.06268]
[1758308991361,1.11637231,115410.0,115400.0,0.06268]
[1758308992366,0.7755265,115410.0,115400.0,0.06268]
[1758308993359,1.11637231,115410.0,115400.0,0.06268]
[1758308993769,0.7755265,115410.0,115400.0,0.06268]
[1758308995369,0.7755265,115410.0,115400.0,0.40352581]
[1758308996666,0.799243,115410.0,115400.0,0.40352581]
[1758308998857,1.14008881,115410.0,115400.0,0.40352581]
[1758308999767,1.13999887,115410.0,115400.0,0.40343587]
[1758309000564,1.11628237,115410.0,115400.0,0.40343587]
[1758309001462,1.13999929,115410.0,115400.0,0.40343587]
[1758309001867,1.11628237,115410.0,115400.0,0.40343587]
[1758309002068,1.13999933,115410.0,115400.0,0.40343587]
[1758309002571,1.11628237,115410.0,115400.0,0.40343587]
[1758309004769,1.2839002,115410.0,115400.0,0.40343587]
[1758309005472,1.1400002,115410.0,115400.0,0.40343587]
[1758309006770,1.11628237,115410.0,115400.0,0.40343587]
[1758309011074,1.11628237,115410.0,115400.0,0.06268]
[1758309011274,1.14001459,115410.0,115400.0,0.40343587]
[1758309011571,1.11628237,115410.0,115400.0,0.06268]
[1758309011773,1.11628237,115410.0,115400.0,0.40343587]
[1758309012163,1.14001462,115410.0,115400.0,0.40343587]
[1758309012370,1.14001872,115410.0,115400.0,0.40343587]
[1758309013273,1.11628237,115410.0,115400.0,0.40343587]
[1758309013475,1.14002138,115410.0,115400.0,0.40343587]
[1758309020874,0.79926551,115410.0,115400.0,0.40343587]
[1758309021079,1.11628237,115410.0,115400.0,0.40343587]
[1758309021685,1.1400248,115410.0,115400.0,0.40343587]
[1758309023383,0.79926893,115410.0,115400.0,0.40343587]
[1758309023887,1.1400248,115410.0,115400.0,0.40343587]
[1758309024387,1.1400248,115410.0,115400.0,0.74419174]
[1758309025579,0.54926893,115410.0,115400.0,0.74419174]
[1758309025783,0.1647265,115410.0,115400.0,0.74419174]
[1758309025989,0.5255265,115410.0,115400.0,0.74419174]
[1758309026187,0.86628237,115410.0,115400.0,0.74419174]
[1758309026891,0.5255265,115410.0,115400.0,0.74419174]
[1758309032698,0.5255265,115410.0,115400.0,1.53027174]
[1758309034902,0.1647265,115410.0,115400.0,1.53027174]
[1758309035398,0.5255265,115410.0,115400.0,1.53027174]
[1758309041102,0.1647265,115410.0,115400.0,1.53027174]
[1758309042301,0.5255265,115410.0,115400.0,1.53027174]
[1758309042892,0.1647265,115410.0,115400.0,1.53027174]
[1758309044810,0.5255265,115410.0,115400.0,1.53027174]
[1758309045406,0.1647265,115410.0,115400.0,1.53027174]
[1758309045600,0.5255265,115410.0,115400.0,1.53027174]
[1758309045807,0.1647265,115410.0,115400.0,1.53027174]
[1758309047708,0.5255265,115410.0,115400.0,1.53027174]
[1758309049813,0.5255265,115410.0,115400.0,0.84876]
[1758309050108,0.5255265,115410.0,115400.0,1.53027174]
[1758309050303,0.5255265,115410.0,115400.0,0.74419174]
[1758309050508,0.5255265,115410.0,115400.0,1.53011174]
[1758309050910,0.54920888,115410.0,115400.0,1.53011174]
[1758309054918,0.54920888,115410.0,115400.0,1.53007174]
[1758309055219,0.88996475,115410.0,115400.0,1.53007174]
[1758309056716,0.86628237,115410.0,115400.0,1.53007174]
[1758309057619,0.5255265,115410.0,115400.0,1.53007174]
[1758309058020,0.86628237,115410.0,115400.0,1.53007174]
[1758309058215,0.5255265,115410.0,115400.0,1.53007174]
[1758309058418,0.88349782,115410.0,115400.0,1.53007174]
[1758309059715,0.54274195,115410.0,115400.0,1.18927878]
[1758309060512,0.54274195,115410.0,115400.0,1.18923878]
[1758309066615,0.18194195,115410.0,115400.0,1.18923878]
[1758309066826,0.54274195,115410.0,115400.0,1.18923878]
[1758309067626,0.18194195,115410.0,115400.0,1.18923878]
[1758309067928,0.54274195,115410.0,115400.0,1.18923878]
[1758309069027,0.54274195,115410.0,115400.0,0.06268]
[1758309069226,0.54274195,115410.0,115400.0,0.84848]
[1758309069422,0.54274195,115410.0,115400.0,1.18919878]
[1758309071018,0.54274195,115410.0,115400.0,0.84848]
[1758309071219,0.54274195,115410.0,115400.0,1.18919878]
[1758309075529,0.68664195,115410.0,115400.0,1.18919878]
[1758309075736,0.54274195,115410.0,115400.0,1.18919878]
[1758309079533,0.54274195,115410.0,115400.0,0.84848]
[1758309079838,0.54274195,115410.0,115400.0,1.18919878]
[1758309080634,0.18194195,115410.0,115400.0,1.18919878]
[1758309080838,0.54274195,115410.0,115400.0,1.18919878]
[1758309084131,0.18194195,115410.0,115400.0,1.18919878]
[1758309084338,0.54274195,115410.0,115400.0,1.18919878]
[1758309086049,0.18194195,115410.0,115400.0,1.18919878]
[1758309086640,0.20565342,115410.0,115400.0,1.18919878]
[1758309086946,0.56645342,115410.0,115400.0,1.18919878]
[1758309087444,0.20565342,115410.0,115400.0,1.18919878]
[1758309088044,0.56645342,115410.0,115400.0,1.18919878]
[1758309092147,0.56645488,115410.0,115400.0,1.18919878]
[1758309092942,0.20565488,115410.0,115400.0,1.18919878]
[1758309093150,0.56645488,115410.0,115400.0,1.18919878]
[1758309095845,0.16003488,115410.0,115400.0,1.18919878]
[1758309096046,0.10881195,115410.0,115400.0,1.77991756]
[1758309096250,0.10881195,115410.0,115400.0,1.43919878]
[1758309097544,0.13349195,115410.0,115400.0,0.65339878]
[1758309097750,0.17564195,115410.0,115400.0,1.43903878]
[1758309098156,0.17564195,115410.0,115400.0,0.65339878]
[1758309098351,0.17564195,115410.0,115400.0,1.43903878]
[1758309099257,0.17564195,115410.0,115400.0,1.18903878]
[1758309103958,0.17564195,115410.0,115400.0,0.84832]
[1758309104252,0.17564195,115410.0,115400.0,1.18903878]
[1758309107950,0.17564195,115410.0,115400.0,0.40339878]
[1758309108154,0.87716073,115410.0,115400.0,0.06268]
[1758309108345,0.78644195,115410.0,115400.0,0.8482]
[1758309108550,0.78644195,115410.0,115400.0,1.18891878]
[1758309109755,0.78644195,115410.0,115400.0,0.8482]
[1758309109958,0.78644195,115410.0,115400.0,1.18891878]
[1758309111753,0.78644195,115410.0,115400.0,0.40339878]
[1758309111959,1.12716073,115410.0,115400.0,0.8482]
[1758309112253,0.78644195,115410.0,115400.0,1.18891878]
[1758309115462,0.78644195,115410.0,115400.0,0.8482]
[1758309115661,0.78644195,115410.0,115400.0,1.18891878]
[1758309115861,0.93034195,115410.0,115400.0,1.18891878]
[1758309116162,0.78644195,115410.0,115400.0,1.18891878]
[1758309119567,0.78644195,115410.0,115400.0,0.06268]
[1758309119766,1.12719612,115410.0,115400.0,1.18891417]
[1758309120275,0.78644195,115410.0,115400.0,1.18891417]
[1758309120463,1.12719612,115410.0,115400.0,1.18891417]
[1758309120664,1.12719612,115410.0,115400.0,1.52966834]
[1758309123774,1.12719612,115410.0,115400.0,0.74418834]
[1758309123973,1.12719612,115410.0,115400.0,1.52966834]
[1758309124174,1.12719612,115410.0,115400.0,1.18891417]
[1758309124574,1.12719612,115410.0,115400.0,1.52966834]
[1758309125679,0.78644195,115410.0,115400.0,1.52966834]
[1758309126071,1.12719612,115410.0,115400.0,1.52966834]
[1758309126377,1.12719612,115410.0,115400.0,1.18891417]
[1758309126879,1.12719612,115410.0,115400.0,1.52966834]
[1758309127179,1.12719612,115410.0,115400.0,0.84816]
[1758309127373,1.12719612,115410.0,115400.0,1.52966834]
[1758309128080,0.78644195,115410.0,115400.0,1.52966834]
[1758309128284,1.12719612,115410.0,115400.0,1.52966834]
[1758309130180,0.78644195,115410.0,115400.0,1.52966834]
[1758309130382,1.12719612,115410.0,115400.0,1.52966834]
[1758309131382,0.78644195,115410.0,115400.0,1.52966834]
[1758309131584,1.12719612,115410.0,115400.0,1.52966834]